Cogmind - Beta 13 *** ADVENTURER MODE // 2024.07.07 @ 15:12:13 Player: fishy 2.0 Result: Destroyed by as-96968 with Assembled F-torch Performance ------------- Evolutions (0) 0 Regions Visited (2) 400 Robots Destroyed (7) 35 Value Destroyed (226) 226 Prototype IDs (0) 0 Alien Tech Used (0) 0 Bonus (0) 0 TOTAL SCORE: 661 Bonus ------- None Cogmind --------- Core Integrity 0/250 Matter 183/300 Energy 99/100 System Corruption 0% Temperature Cool (49) Movement Core (700) Ox13 Location -10/Mines Parts ------- > --- POWER (1) -------- (None) > --- PROPULSION (2) --- (None) > --- UTILITY (2) ------ High-capacity Storage Unit Targeting Computer > --- WEAPON (2) ------- Makeshift Sword > --- INVENTORY (20) --- (None) Peak State ------------ > --- POWER ------------ (None) > --- PROPULSION ------- Aluminum Leg > --- UTILITY ---------- High-capacity Storage Unit Terrain Scanner > --- WEAPON ----------- Grenade Launcher Makeshift Sword > --- INVENTORY -------- Targeting Computer Medium Laser [Rating: 8] Favorites ----------- Power Light Ion Engine Engine Light Ion Engine Propulsion Aluminum Leg Leg Aluminum Leg Wheel Wheel Utility High-capacity Storage Unit Device Terrain Scanner Storage High-capacity Storage Unit Processor Targeting Computer Weapon Light Assault Rifle Energy Gun Medium Laser Ballistic Gun Light Assault Rifle Launcher Grenade Launcher Slashing Weapon Makeshift Sword Build | -11 -10 -10 ------- Run | Yrd Mat Min Slots Evolved . | . . . Power . | . . . Propulsion . | . . . Utility . | . . . Weapon . | . . . Parts Attached 16 | 6 3 7 Power 1 | 1 . . Engine 1 | 1 . . Core . | . . . Reactor . | . . . Propulsion 6 | 2 1 3 Treads . | . . . Leg 4 | 2 1 1 Wheel 2 | . . 2 Hover . | . . . Flight . | . . . Utility 4 | 1 2 1 Device 1 | . 1 . Storage 2 | 1 1 . Processor 1 | . . 1 Hackware . | . . . Protection . | . . . Artifact . | . . . Weapon 5 | 2 . 3 Energy Gun 1 | . . 1 Energy Cannon . | . . . Ballistic Gun 2 | 2 . . Ballistic Cannon . | . . . Launcher 1 | . . 1 Special Weapon . | . . . Impact Weapon . | . . . Slashing Weapon 1 | . . 1 Piercing Weapon . | . . . Special Melee Weapon . | . . . Unidentified Prototypes . | . . . Parts Lost 10 | . . 10 Power 1 | . . 1 Propulsion 4 | . . 4 Utility 1 | . . 1 Weapon 4 | . . 4 Highest Loss Streak 6 | . . 6 To Critical Strikes . | . . . Average Slot Usage (%) 89 | . 93 86 Engine 11 | . 14 10 Leg 23 | . 28 21 Device 10 | . 8 11 Storage 14 | . 14 14 Ballistic Gun 23 | . 28 20 Launcher 1 | . . 2 Slashing Weapon 2 | . . 3 Naked Turns . | . . . Heaviest Build 47 | 11 47 47 Greatest Support 20 | 20 20 20 Greatest Overweight (x) 15 | . 2 15 Average Overweight (x) 1 | . . 2 Largest Inventory Capacity 20 | 8 20 20 Average Capacity 16 | 6 12 20 Most Carried 5 | 3 4 5 Average Carried 2 | . 2 3 Final Capacity 20 | 8 20 20 Final Carried 3 | 1 3 . Class Distribution -------------------- 100% | Mutant Dominant Class ---------------- Mutant | -10/Materials Mutant | -10/Mines Resources | -11 -10 -10 ----------- Run | Yrd Mat Min Matter Collected 368 | 223 68 77 Remotely . | . . . Salvage Created 303 | . 136 167 Parts 14 | . 7 7 Haulers Intercepted . | . . . Recyclers Shooed 1 | . 1 . Parts Field Recycled . | . . . Retrieved Matter . | . . . Parts Self-Destructed . | . . . Prevented . | . . . Kills | -11 -10 -10 ------- Run | Yrd Mat Min Combat Hostiles Destroyed 14 | . 3 11 Guns 10 | . 3 7 AOE 4 | . . 4 Classes Destroyed 3 | . 1 2 Swarmer 2 | . . 2 Grunt 5 | . 3 2 Assembled 7 | . . 7 Best Kill Streak 4 | . 2 4 Combat Bots Only 4 | . 2 4 Max Kills in Single Turn 1 | . 1 1 Gunslinging . | . . . Exploded 1 | . . 1 Melee . | . . . Uniques/NPCs Destroyed . | . . . Combat | -11 -10 -10 -------- Run | Yrd Mat Min Hostile Shots Fired 105 | . 9 96 Missed 18 | . 2 16 Damage Taken 1122 | . 64 1058 Core 252 | . 9 243 Absorbed by Shields . | . . . Ignored by Resistances 332 | . 19 313 Core Remaining (%) 100 | 100 . . Volleys Fired 46 | . 6 40 Largest 2 | . 2 2 Hottest 50 | . 40 50 Shots Fired 66 | . 12 54 Gun 57 | . 12 45 Cannon . | . . . Launcher 9 | . . 9 Special . | . . . Kinetic 43 | . 12 31 Thermal 14 | . . 14 Explosive 9 | . . 9 Electromagnetic . | . . . Robot Hit Streak 16 | . 11 16 Robot Miss Streak 1 | . . 1 Penetration Max . | . . . Secondary Targets 2 | . 1 1 Max Gunslinging Chain 1 | . 1 1 Shots Hit Robots 58 | . 11 47 Core Hits 25 | . 7 18 Critical Kills . | . . . Critical Parts Destroyed . | . . . Critical Strikes 1 | . . 1 Sever 1 | . . 1 Melee Attacks 2 | . . 2 Impact . | . . . Slashing 2 | . . 2 Piercing . | . . . Sneak Attacks . | . . . Combat Hostiles . | . . . Follow-up Attacks . | . . . Damage Inflicted 958 | . 128 830 Guns 557 | . 123 434 Cannons . | . . . Explosions 306 | . . 306 Melee 81 | . . 81 Ramming 14 | . 5 9 Kinetic 408 | . 123 285 Thermal 149 | . . 149 Explosive 306 | . . 306 Electromagnetic . | . . . Impact . | . . . Slashing 81 | . . 81 Piercing . | . . . Highest Corruption . | . . . Average Corruption . | . . . Corruption Purged . | . . . Corruption Blocked . | . . . Overload Shots . | . . . Overflow Damage 33 | . . 33 Projectiles . | . . . Explosions 11 | . . 11 Melee 22 | . . 22 Knockbacks 1 | . . 1 Impact 1 | . . 1 Kinetic . | . . . Secondary . | . . . Self-Inflicted Damage 100 | . . 100 Shots 4 | . . 4 Rammed . | . . . Targets Rammed 6 | . 1 5 Kicked 6 | . 1 5 Crushed . | . . . Highest Temperature 189 | . 15 189 Average Temperature 80 | . 6 88 Received Heat Transfer 604 | . 48 556 Siege Activations . | . . . Robots Corrupted . | . . . Combat Hostiles . | . . . Parts Fried . | . . . Impact Corruptions . | . . . Robots Melted . | . . . Combat Hostiles . | . . . Parts Melted . | . . . Heat Transferred 444 | . . 444 Parts Sabotaged . | . . . Parts Stolen . | . . . Parts Stripped . | . . . Power Chain Reactions . | . . . Alert | -11 -10 -10 ------- Run | Yrd Mat Min Peak Influence 123 | . 73 123 Initial 23 | . . 23 Average 46 | . 50 50 Maximum Alert Level . | . . . Low Security (%) 100 | 100 100 100 Level 1 . | . . . Level 2 . | . . . Level 3 . | . . . Level 4 . | . . . Level 5 . | . . . High Security . | . . . Max Security . | . . . Squads Dispatched . | . . . Investigation . | . . . Extermination . | . . . Reinforcement . | . . . Assault . | . . . Garrison . | . . . Intercept . | . . . Searches Triggered . | . . . Construction Impeded . | . . . Haulers Reinforced . | . . . Active Scanning Responses . | . . . Cargo Convoy Interrupts . | . . . Stealth | -11 -10 -10 --------- Run | Yrd Mat Min Distress Signals . | . . . Communications Jammed . | . . . Distress Signals . | . . . Times Spotted 26 | . 4 22 Peak Tracking Total 6 | . 3 6 Tactical Retreats 1 | . . 1 Traps | -11 -10 -10 ------- Run | Yrd Mat Min Traps Triggered . | . . . Indirectly . | . . . Trap Hack Attempts . | . . . Triggered . | . . . Disarmed . | . . . Reprogrammed . | . . . Reused . | . . . Traps Extracted . | . . . Installed . | . . . Triggered . | . . . Machines | -11 -10 -10 ---------- Run | Yrd Mat Min Machines Disabled 1 | . . 1 Max in Single Turn 1 | . . 1 Machines Repaired . | . . . Machines Dismantled . | . . . Machines Sabotaged . | . . . Overloaded Fab Kills . | . . . Hacking | -11 -10 -10 --------- Run | Yrd Mat Min Machines Accessed 2 | . 2 . Terminals 2 | . 2 . Fabricators . | . . . Repair Stations . | . . . Recycling Units . | . . . Scanalyzers . | . . . Garrison Access . | . . . Total Hacks 5 | . 5 . Successful 3 | . 3 . Failed 2 | . 2 . Catastrophic . | . . . Database Lockouts . | . . . Manual . | . . . Terminals 5 | . 5 . Fabricators . | . . . Repair Stations . | . . . Recycling Units . | . . . Scanalyzers . | . . . Garrison Access . | . . . Terminal Hacks 3 | . 3 . Record 2 | . 2 . Dispatch Records 1 | . 1 . Fabricator Hacks . | . . . Repair Station Hacks . | . . . Recycling Unit Hacks . | . . . Scanalyzer . | . . . Garrison Access Hacks . | . . . Unauthorized Hacks . | . . . Terminals . | . . . Fabricators . | . . . Repair Stations . | . . . Recycling Units . | . . . Scanalyzers . | . . . Garrison Access . | . . . Data Cores Recovered . | . . . Used . | . . . Hacking Detections 1 | . 1 . Full Trace Events . | . . . Feedback Events . | . . . Feedback Blocked . | . . . Robot Schematics Acquired . | . . . Robots Built . | . . . Authchips . | . . . Time . | . . . Total Robot Build Rating . | . . . Part Schematics Acquired . | . . . Parts Built . | . . . Authchips . | . . . Time . | . . . Total Part Build Rating . | . . . Parts Repaired . | . . . Time . | . . . Parts Recycled . | . . . Recycled Matter . | . . . Retrieved Matter . | . . . Retrieved Components . | . . . Parts Scanalyzed . | . . . Part Schematics Acquired . | . . . Parts Damaged . | . . . Bothacking | -11 -10 -10 ------------ Run | Yrd Mat Min Used RIF Installer . | . . . Robots Hacked . | . . . Non-combat . | . . . Combat . | . . . Robot Hacks Applied . | . . . Relay Couplers Released . | . . . Fabnet Peak Effective % . | . . . Robots Rewired . | . . . Allies Hacked . | . . . Hacks Repelled . | . . . Allies | -11 -10 -10 -------- Run | Yrd Mat Min Total Allies . | . . . Largest Group . | . . . Highest-Rated Group . | . . . Highest-Rated Ally . | . . . Total Orders . | . . . Ally Attacks . | . . . Total Damage . | . . . Kills . | . . . Allies Corrupted . | . . . Allies Melted . | . . . Intel | -11 -10 -10 ------- Run | Yrd Mat Min Robot Analysis Total . | . . . Derelict Logs Recovered . | . . . Drone Launches . | . . . Drone Recoveries . | . . . Exploration | -11 -10 -10 ------------- Run | Yrd Mat Min Turns Passed 735 | 55 238 442 Spaces Moved 300 | 43 138 119 Core 18 | 13 . 5 Treads . | . . . Legs 273 | 30 138 105 Wheels 9 | . . 9 Hover . | . . . Flight . | . . . Fastest Speed 50 | 50 120 140 Average Speed 194 | 98 153 276 Slowest Speed 800 | 120 260 800 Overloaded Moves . | . . . Propulsion Burnouts . | . . . Robots Hopped . | . . . Cave-ins Triggered . | . . . Exploration Rate (%) 20 | 4 25 32 Regions Visited 2 Branch Regions 1 Pre-discovered Areas . | . . . Known Exits Taken . | . . . Unknown Exits Taken 2 | 1 1 . Scrap Searched . | . . . Spaces Dug . | . . . Terrain Destroyed 37 | . . 37 Melee . | . . . Projectile . | . . . AOE 37 | . . 37 Terrain Rammed . | . . . Walls Destroyed . | . . . Machines Disabled . | . . . Actions | -11 -10 -10 --------- Run | Yrd Mat Min Total 387 | 55 154 178 Wait . | . . . Move 298 | 42 137 119 Hop . | . . . Pick Up 16 | 7 5 4 Fast Attach . | . . . Attach 13 | 6 1 6 Detach . | . . . Swap 3 | . 2 1 Drop 3 | . 2 1 Fire 46 | . 6 40 Melee 2 | . . 2 Ram . | . . . Kick 6 | . 1 5 Crush . | . . . Escape Stasis . | . . . Rewire . | . . . Trap . | . . . Miscellaneous . | . . . Route ------- -11/Scrapyard -10/Materials -10/Mines History --------- Turn | Location | Event 5 | -11/Scrapyard | Discovered new exit (range 15) 56 | -11/Scrapyard | Entered Materials 190 | -10/Materials | Discovered new exit (range 9) 294 | -10/Materials | Entered Mines 317 | -10/Mines | Build established: Mutant 322 | -10/Mines | Met a Derelict bent on vengeance 372 | -10/Mines | A weapon hastily lodged in a ceiling crevice suddenly fell to the ground 572 | -10/Mines | Assembled infested the area 577 | -10/Mines | Assisted by a Guerilla fighting off Assembled 686 | -10/Mines | Lost 6 parts (1p2n1u2w) 694 | -10/Mines | Core integrity fell below 50% 718 | -10/Mines | Core integrity fell below 20% 736 | -10/Mines | Destroyed by as-96968 with Assembled F-torch Last Messages --------------- U-05 Engineer lays Concrete. as-59283 sneak attacks. Wheel destroyed. U-05 Engineer destroyed. Grenade Launcher destroyed. Destroyed Asb. Hover Unit. Critical hit (Burn: +80). Destroyed Asb. Blade. K-01 Serf collects debris. as-25966 destroyed. K-01 Serf collects debris. The unstable cave ceiling collapses. Wheel destroyed. U-05 Engineer lays Concrete. U-05 Engineer Wheel severed. as-01793 destroyed. as-59283 destroyed. Med. Laser destroyed. Acquired 3 matter. The unstable cave ceiling collapses. Map ----- +----------------------------------------------------+ | | | | | | | | | ?????????????????????????????????????????????????? | | ?????????????????????????????????????????????????? | | ?????????????????????????????????????????????????? | | ?????????????????????????????????????????????????? | | ?????????????????????????????????????????????????? | | ?????????????????????????????????????????????????? | | ?????????????????????????????????????????????????? | | ?????????????????????????????????????????????????? | | ?????????????????????????????????????????????????? | | ?????????????????????????????????????????????????? | | ?????????????????????????????????????????????????? | | ??????????????????????? ?????????????????????????? | | ??????????????????????? ?????????????????????????? | | ????????????????????### ?????????????????????????? | | ????????????# ??????# ?????????????????????????? | | ????????????# #?????# #?????????????????????????? | | ?????????????*%=????# #?????????????????????????? | | ??????????????=! ???# #########?????????????????? | | ???????????????# ??# # ##????????????????? | | ???????????????# %### = #######??????????? | | ??????#????????# =! % %= %=! ??????? | | ???????????????# =a@ ! % ?????? | | ?????????????#?#### =%* ########### ??????? | | ???????#??#???????## ! #####??????????????????? | | ??????????????####### ## #?????????????????????? | | ?????????#??### ## #??#??????????????????? | | ?????#?????## #?#???????????????????? | | ?#?????#???# ####?????????????????????? | | ??????????## " #????????????????????????? | | ?????????#### " ##???????????????????????? | | ??????????#?# % #???????????????????????? | | #%# ##### ##??????????????????????? | | %%=% = [ # #???????????????????????? | | %=% = = ### #???#???????????????????? | | !! % ! ##???????????????????????? | | * #%# #####????????????????????????? | | # ## ### # #??????? ???????????????????? | | ?????####### ## # ### ??#??????????????????????? | | ? ?????#?#?# ##########?#????????????????????????? | | ??#?#??????# ???????????????????? | | ???##???#??### ###### ##?????????????????????????? | | ??????#??????# #?????????????????????????????????? | | ???#??????#??#%#????? ???#???????????????????????? | | ?????????#####%#????#????????????????????????????? | | ???????#?# = % #????# ???????????????????????????? | | ??????#### #####????? #??????????????????????????? | +----------------------------------------------------+ Best States ------------- Heat Dissipation 25 Energy Generation 10 Energy Capacity 125 Matter Stores 300 Matter Capacity 300 Sight Range 16 Terrain Scan Range 14 Terrain Scan Density 10 Resistance: KI 20 Resistance: TH 20 Resistance: EX 20 Resistance: EM 20 Resistance: I 20 Resistance: S 20 Resistance: P 20 Evasion (%) 55 Targeting Accuracy 5 Offensive Hacking 10 Item Schematics ----------------- None Robot Schematics ------------------ None Fabricated ------------ Nothing Alien Tech Used ----------------- None Achievements -------------- None Challenges ------------ None Game ------ Seed StealthTractorDoublenader Manual? 0 Play Time 00:10:31 Cumulative 5.8 hours Start 2024.07.07 @ 15:05:30 End 2024.07.07 @ 15:12:13 Sessions 1 Manual Loads 0 Difficulty Adventurer Special Mode None Game No. 11 Rogue 0 Adventurer 11 Explorer 0 Win Type - Total 0 Types 0/0/0/0/0/0/0/0/0 Lore% 9 Gallery% 15 Achievement% 12 Wizard Run 0 Options --------- Layout 1 ASCII 0 Keyboard 0 Movement Mouse Keybinds 0 Fullscreen 1 Font 24/Smallcaps Map View 50x35 Zoom Use 0% Tactical HUD 0 Map Filters NONE Filters NONE Steam 1 RUN: 34fd60f7-1401-4175-a463-7f36c1782b96